fUST/lending_fUST_20250713
["ID","MTS","AMOUNT","RATE_DAILY","PERIOD"]
[371540296,1752341473444,-572.58,0.00021095,2]
[371540297,1752341473454,-520.2,0.00021095,2]
[371540298,1752341473464,-724.22,0.00021095,2]
[371540299,1752341473474,-477.98,0.00021095,2]
[371540300,1752341473484,-460.0,0.00021095,2]
[371540301,1752341473494,-1280.94,0.00021095,2]
[371540302,1752341473504,-1975.66,0.00021095,2]
[371540303,1752341473514,-822.69,0.00021095,2]
[371540304,1752341473527,-764.69,0.00021095,2]
[371540305,1752341473538,-2904.99,0.00021095,2]
[371540306,1752341473548,-641.87,0.00021095,2]
[371540307,1752341473558,-717.3,0.00021095,2]
[371540308,1752341473568,-472.14,0.00021095,2]
[371540309,1752341473578,-461.89,0.00021095,2]
[371540310,1752341473588,-555.91,0.00021095,2]
[371540311,1752341473599,-2667.26,0.00021095,2]
[371540312,1752341473610,-491.78,0.00021095,2]
[371540313,1752341473621,-645.69,0.00021095,2]
[371540314,1752341473632,-505.28,0.00021095,2]
[371540315,1752341473643,-460.0,0.00021095,2]
[371540316,1752341473653,-460.0,0.00021095,2]
[371540317,1752341473664,-800.93,0.00021095,2]
[371540318,1752341473674,-460.0,0.00021095,2]
[371540319,1752341473685,-489.97,0.00021095,2]
[371540320,1752341473696,-2783.19,0.00021095,2]
[371540321,1752341473706,-460.0,0.00021095,2]
[371540322,1752341473717,-553.18,0.00021095,2]
[371540323,1752341473727,-466.62,0.00021095,2]
[371540324,1752341473738,-1495.63,0.00021095,2]
[371540325,1752341473748,-488.38,0.00021095,2]
[371540326,1752341473758,-4194.76,0.00021095,2]
[371540327,1752341473768,-460.02,0.00021095,2]
[371540328,1752341473779,-1061.05,0.00021095,2]
[371540329,1752341473790,-500.0,0.000212,2]
[371540330,1752341473800,-154.303255,0.00021202,2]
[371540331,1752341473810,-1961.7256578,0.00021279,5]
[371540332,1752341473820,-2500.0,0.00021364,2]
[371540333,1752341473829,-2000.0,0.00021364,2]
[371540334,1752341473840,-350.99488138,0.00021369,2]
[371540335,1752341473850,-520.55,0.00021369,2]
[371540336,1752341473860,-667.2,0.00021369,2]
[371540337,1752341473870,-696.16,0.00021369,2]
[371540338,1752341473880,-706.94,0.00021369,2]
[371540339,1752341473890,-460.0,0.00021369,2]
[371540340,1752341473900,-460.0,0.00021369,2]
[371540341,1752341473910,-151.0,0.00021369,2]
[371540342,1752341473919,-151.0,0.00021369,2]
[371540343,1752341473928,-151.0,0.00021369,2]
[371540344,1752341473938,-422.024298,0.00021369,2]
[371540345,1752341473947,-422.024298,0.00021369,2]
[371540346,1752341473957,-151.0,0.00021369,2]
[371540347,1752341473966,-460.0,0.00021369,2]
[371540348,1752341473976,-151.0,0.00021369,2]
[371540349,1752341473986,-692.2,0.00021369,2]
[371540350,1752341473996,-778.38,0.00021369,2]
[371540351,1752341474005,-460.0,0.00021369,2]
[371540352,1752341474015,-661.3,0.00021369,2]
[371540353,1752341474025,-151.0,0.00021369,2]
[371540354,1752341474035,-185.450766,0.00021369,2]
[371540355,1752341474045,-5899.36,0.00021369,2]
[371540356,1752341474055,-151.0,0.00021369,2]
[371540357,1752341474065,-1031.76,0.00021369,2]
[371540358,1752341474075,-460.0,0.00021369,2]
[371540359,1752341474086,-460.0,0.00021369,2]
[371540360,1752341474096,-855.52,0.00021369,2]
[371540361,1752341474105,-1595.36,0.00021369,2]
[371540362,1752341474115,-188.001499,0.00021369,2]
[371540363,1752341474124,-1455.86,0.00021369,2]
[371540364,1752341474134,-188.001499,0.00021369,2]
[371540365,1752341474145,-460.0,0.00021369,2]
[371540366,1752341474155,-1600.37,0.00021369,2]
[371540367,1752341474165,-3548.65,0.00021369,2]
[371540368,1752341474174,-1889.11,0.00021369,2]
[371540369,1752341474184,-504.357053,0.00021369,2]
[371540370,1752341474194,-576.07,0.00021369,2]
[371540371,1752341474204,-301.566349,0.00021369,2]
[371540372,1752341474213,-504.357053,0.00021369,2]
[371540373,1752341474222,-1377.53,0.00021369,2]
[371540374,1752341474232,-301.566349,0.00021369,2]
[371540375,1752341474366,-528.16,0.00021369,2]
[371540376,1752341474388,-574.66,0.00021369,2]
[371540377,1752341474398,-572.58,0.00021369,2]
[371540378,1752341474408,-520.2,0.00021369,2]
[371540379,1752341474417,-724.22,0.00021369,2]
[371540380,1752341474427,-477.98,0.00021369,2]
[371540381,1752341474436,-460.0,0.00021369,2]
[371540382,1752341474446,-1280.94,0.00021369,2]
[371540383,1752341474455,-1975.66,0.00021369,2]
[371540384,1752341474465,-822.69,0.00021369,2]
[371540385,1752341474475,-764.69,0.00021369,2]
[371540386,1752341474485,-2904.99,0.00021369,2]
[371540387,1752341474495,-641.87,0.00021369,2]
[371540388,1752341474504,-717.3,0.00021369,2]
[371540389,1752341474514,-472.14,0.00021369,2]
[371540390,1752341474525,-461.89,0.00021369,2]
[371540391,1752341474536,-555.91,0.00021369,2]
[371540392,1752341474546,-2667.26,0.00021369,2]
[371540393,1752341474555,-491.78,0.00021369,2]
[371540394,1752341474566,-645.69,0.00021369,2]
[371540395,1752341474575,-505.28,0.00021369,2]
[371540396,1752341474585,-460.0,0.00021369,2]
[371540397,1752341474594,-520.33762507,0.00021369,2]
[371540398,1752341474605,-800.93,0.00021369,2]
[371540399,1752341474615,-347.382821,0.00021369,2]
[371540400,1752341474624,-552.52,0.00021369,2]
[371540401,1752341474634,-489.97,0.00021369,2]
[371540402,1752341474645,-347.382821,0.00021369,2]
[371540403,1752341474654,-2783.19,0.00021369,2]
[371540404,1752341474664,-460.0,0.00021369,2]
[371540405,1752341474673,-466.62,0.00021369,2]
[371540406,1752341474683,-151.000002,0.00021369,2]
[371540407,1752341474693,-1495.63,0.00021369,2]
[371540408,1752341474702,-151.0,0.00021369,2]
[371540409,1752341474712,-488.38,0.00021369,2]
[371540410,1752341474721,-4194.76,0.00021369,2]
[371540411,1752341474731,-460.02,0.00021369,2]
[371540412,1752341474740,-1061.05,0.00021369,2]
[371540413,1752341474750,-500.0,0.000214,2]
[371540414,1752341474759,-306.0,0.00021479,2]
[371540415,1752341474769,-1961.7256578,0.00021521,5]
[371540416,1752341474779,-307.28145707,0.00021616,2]
[371540417,1752341474790,-520.55,0.00021643,2]
[371540418,1752341474799,-667.2,0.00021643,2]
[371540419,1752341474808,-696.16,0.00021643,2]
[371540420,1752341474818,-706.94,0.00021643,2]
[371540421,1752341474828,-460.0,0.00021643,2]
[371540422,1752341474837,-524.06,0.00021643,2]
[371540423,1752341474847,-460.0,0.00021643,2]
[371540424,1752341474856,-692.2,0.00021643,2]
[371540425,1752341474867,-778.38,0.00021643,2]
[371540426,1752341474878,-460.0,0.00021643,2]
[371540427,1752341474889,-661.3,0.00021643,2]
[371540428,1752341474898,-5899.36,0.00021643,2]
[371540429,1752341474909,-1031.76,0.00021643,2]
[371540430,1752341474918,-460.0,0.00021643,2]
[371540431,1752341474928,-460.0,0.00021643,2]
[371540432,1752341474937,-855.52,0.00021643,2]
[371540433,1752341474947,-1595.36,0.00021643,2]
[371540434,1752341474956,-1455.86,0.00021643,2]
[371540435,1752341474966,-472.26,0.00021643,2]
[371540436,1752341474975,-1600.37,0.00021643,2]
[371540437,1752341474984,-3548.65,0.00021643,2]
[371540438,1752341474994,-1889.11,0.00021643,2]
[371540439,1752341475004,-576.07,0.00021643,2]
[371540440,1752341475013,-1377.53,0.00021643,2]
[371540441,1752341475023,-528.16,0.00021643,2]
[371540442,1752341475032,-574.66,0.00021643,2]
[371540443,1752341475042,-333.55863944,0.00021643,2]
[371540444,1752341475051,-572.58,0.00021643,2]
[371540445,1752341475060,-520.2,0.00021643,2]
[371540446,1752341475071,-724.22,0.00021643,2]
[371540447,1752341475080,-477.98,0.00021643,2]
[371540448,1752341475090,-460.0,0.00021643,2]
[371540449,1752341475099,-1280.94,0.00021643,2]
[371540450,1752341475109,-1975.66,0.00021643,2]
[371540451,1752341475119,-764.69,0.00021643,2]
[371540452,1752341475129,-822.69,0.00021643,2]
[371540453,1752341475139,-2904.99,0.00021643,2]
[371540454,1752341475148,-717.3,0.00021643,2]
[371540455,1752341475158,-472.14,0.00021643,2]
[371540456,1752341475167,-461.89,0.00021643,2]
[371540457,1752341475176,-555.91,0.00021643,2]
[371540458,1752341475186,-2667.26,0.00021643,2]
[371540459,1752341475195,-491.78,0.00021643,2]
[371540460,1752341475205,-645.69,0.00021643,2]
[371540461,1752341475215,-505.28,0.00021643,2]
[371540462,1752341475225,-460.0,0.00021643,2]
[371540463,1752341475235,-800.93,0.00021643,2]
[371540464,1752341475244,-489.97,0.00021643,2]
[371540465,1752341475253,-2783.19,0.00021643,2]
[371540466,1752341475263,-460.0,0.00021643,2]
[371540467,1752341475272,-466.62,0.00021643,2]
[371540468,1752341475282,-1495.63,0.00021643,2]
[371540469,1752341475291,-488.38,0.00021643,2]
[371540470,1752341475301,-4194.76,0.00021643,2]
[371540471,1752341475310,-460.02,0.00021643,2]
[371540472,1752341475319,-1061.05,0.00021643,2]
[371540473,1752341475328,-1971.403377,0.000217,2]
[371540474,1752341475338,-406.710149,0.00021756,4]
[371540475,1752341475347,-1961.7256578,0.00021762,5]
[371540476,1752341475356,-812.5,0.00021771,2]
[371540477,1752341475366,-3745.95,0.000218,2]
[371540478,1752341475375,-168.0,0.00021837,2]
[371540479,1752341475384,-168.0,0.00021898,2]
[371540480,1752341475394,-486.0,0.000219,2]
[371540481,1752341475403,-29944.87,0.000219,2]
[371540482,1752341475413,-151.0,0.000219,2]
[371540483,1752341475422,-168.0,0.00021908,2]
[371540484,1752341475432,-500.0,0.0002191,2]
[371540485,1752341475441,-151.0,0.00021912,2]
[371540486,1752341475452,-2000.0,0.00021912,2]
[371540487,1752341475462,-520.55,0.00021917,2]
[371540488,1752341475472,-667.2,0.00021917,2]
[371540489,1752341475481,-696.16,0.00021917,2]
[371540490,1752341475491,-706.94,0.00021917,2]
[371540491,1752341475500,-521.11,0.00021917,2]
[371540492,1752341475509,-169.9809629,0.00021917,2]
[371540493,1752341475519,-692.2,0.00021917,2]
[371540494,1752341475531,-778.38,0.00021917,2]
[371540495,1752341475540,-460.0,0.00021917,2]
[371540496,1752341475550,-661.3,0.00021917,2]
[371540497,1752341475559,-5899.36,0.00021917,2]
[371540498,1752341475568,-1031.76,0.00021917,2]
[371540499,1752341475579,-460.0,0.00021917,2]
[371540500,1752341475588,-460.0,0.00021917,2]
[371540501,1752341475597,-855.52,0.00021917,2]
[371540502,1752341475608,-1595.36,0.00021917,2]
[371540503,1752341475617,-1455.86,0.00021917,2]
[371540504,1752341475626,-1600.37,0.00021917,2]
[371540505,1752341475635,-3548.65,0.00021917,2]
[371540506,1752341475645,-1889.11,0.00021917,2]
[371540507,1752341475655,-576.07,0.00021917,2]
[371540508,1752341475664,-1377.53,0.00021917,2]
[371540509,1752341475673,-528.16,0.00021917,2]
[371540510,1752341475683,-574.66,0.00021917,2]
[371540511,1752341475692,-572.58,0.00021917,2]
[371540512,1752341475701,-520.2,0.00021917,2]
[371540513,1752341475710,-724.22,0.00021917,2]
[371540514,1752341475720,-477.98,0.00021917,2]
[371540515,1752341475729,-460.0,0.00021917,2]
[371540516,1752341475738,-1280.94,0.00021917,2]
[371540517,1752341475747,-151.0,0.00021917,2]
[371540518,1752341475756,-1975.66,0.00021917,2]
[371540519,1752341475767,-151.0,0.00021917,2]
[371540520,1752341475776,-764.69,0.00021917,2]
[371540521,1752341475786,-822.69,0.00021917,2]
[371540522,1752341475796,-2904.99,0.00021917,2]
[371540523,1752341475805,-151.0,0.00021917,2]
[371540524,1752341475814,-154.823331,0.00021917,2]
[371540525,1752341475824,-717.3,0.00021917,2]
[371540526,1752341475833,-472.14,0.00021917,2]
[371540527,1752341475842,-461.89,0.00021917,2]
[371540528,1752341475852,-555.91,0.00021917,2]
[371540529,1752341475862,-151.0,0.00021917,2]
[371540530,1752341475872,-2667.26,0.00021917,2]
[371540531,1752341475881,-491.78,0.00021917,2]
[371540532,1752341475891,-645.69,0.00021917,2]
[371540533,1752341475900,-151.0,0.00021917,2]
[371540534,1752341475910,-505.28,0.00021917,2]
[371540535,1752341475921,-460.0,0.00021917,2]
[371540536,1752341475932,-800.93,0.00021917,2]
[371540537,1752341475941,-489.97,0.00021917,2]
[371540538,1752341475952,-2783.19,0.00021917,2]
[371540539,1752341475963,-460.0,0.00021917,2]
[371540540,1752341475973,-466.62,0.00021917,2]
[371540541,1752341475983,-1495.63,0.00021917,2]
[371540542,1752341475992,-488.38,0.00021917,2]
[371540543,1752341476001,-4194.76,0.00021917,2]
[371540544,1752341476010,-460.02,0.00021917,2]
[371540545,1752341476019,-168.0,0.00021956,2]
[371540546,1752341476028,-800.0,0.00021958,2]
[371540547,1752341476037,-2000.52774545,0.0002199,2]
[371540548,1752341476045,-9999.99999982,0.00022,2]
[371540549,1752341476054,-492.41,0.00022,7]
[371540550,1752341476063,-1961.7256578,0.00022003,6]
[371540551,1752341476072,-168.0,0.0002201,2]
[371540552,1752341476081,-800.0,0.0002204,2]
[371540553,1752341476090,-215.0738,0.00022088,2]
[371540554,1752341476099,-1400.12292297,0.000221,2]
[371540555,1752341476108,-800.0,0.00022117,2]
[371540556,1752341476117,-225.00448196,0.00022141,2]
[371540557,1752341476126,-800.0,0.0002217,2]
[371540558,1752341476135,-520.55,0.00022191,2]
[371540559,1752341476144,-667.2,0.00022191,2]
[371540560,1752341476153,-696.16,0.00022191,2]
[371540561,1752341476162,-706.94,0.00022191,2]
[371540562,1752341476171,-692.2,0.00022191,2]
[371540563,1752341476180,-778.38,0.00022191,2]
[371540564,1752341476189,-460.0,0.00022191,2]
[371540565,1752341476198,-661.3,0.00022191,2]
[371540566,1752341476207,-5899.36,0.00022191,2]
[371540567,1752341476216,-1031.76,0.00022191,2]
[371540568,1752341476318,-460.0,0.00022191,2]
[371540569,1752341476327,-386.15,0.00022191,2]
[371540570,1752341476337,-855.52,0.00022191,2]
[371540571,1752341476346,-1595.36,0.00022191,2]
[371540572,1752341476355,-1455.86,0.00022191,2]
[371540573,1752341476364,-1600.37,0.00022191,2]
[371540574,1752341476373,-3548.65,0.00022191,2]
[371540575,1752341476382,-1889.11,0.00022191,2]
[371540576,1752341476392,-576.07,0.00022191,2]
[371540577,1752341476402,-1377.53,0.00022191,2]
[371540578,1752341476411,-528.16,0.00022191,2]
[371540579,1752341476421,-574.66,0.00022191,2]
[371540580,1752341476430,-572.58,0.00022191,2]
[371540581,1752341476439,-520.2,0.00022191,2]
[371540582,1752341476449,-724.22,0.00022191,2]
[371540583,1752341476458,-477.98,0.00022191,2]
[371540584,1752341476467,-1280.94,0.00022191,2]
[371540585,1752341476476,-1975.66,0.00022191,2]
[371540586,1752341476486,-764.69,0.00022191,2]
[371540587,1752341476495,-822.69,0.00022191,2]
[371540588,1752341476504,-2904.99,0.00022191,2]
[371540589,1752341476513,-717.3,0.00022191,2]
[371540590,1752341476523,-472.14,0.00022191,2]
[371540591,1752341476537,-461.89,0.00022191,2]
[371540592,1752341476547,-555.91,0.00022191,2]
[371540593,1752341476556,-2667.26,0.00022191,2]
[371540594,1752341476565,-491.78,0.00022191,2]
[371540595,1752341476577,-645.69,0.00022191,2]
[371540596,1752341476587,-505.28,0.00022191,2]
[371540597,1752341476597,-460.0,0.00022191,2]
[371540598,1752341476610,-800.93,0.00022191,2]
[371540599,1752341476620,-489.97,0.00022191,2]
[371540600,1752341476629,-317.88,0.00022191,2]
[371540601,1752341476640,-2783.19,0.00022191,2]
[371540602,1752341476649,-466.62,0.00022191,2]
[371540603,1752341476659,-1495.63,0.00022191,2]
[371540604,1752341476668,-488.38,0.00022191,2]
[371540605,1752341476678,-4194.76,0.00022191,2]
[371540606,1752341476687,-460.02,0.00022191,2]
[371540607,1752341476697,-84397.13915456,0.000222,2]
[371540608,1752341476839,-13719.56673724,0.000222,2]
[371540609,1752341477514,-500.0,0.00016438,2]
[371540610,1752341477524,-500.0,0.00016438,2]
[371540611,1752341477535,-460.0,0.00016438,2]
[371540612,1752341477545,-410.17393402,0.00016438,2]
[371540613,1752341477556,-89.82606598,0.00016438,2]
[371540614,1752341477567,-500.0,0.00016438,2]
[371540615,1752341477577,-500.0,0.00016438,2]
[371540616,1752341477586,-460.0,0.00016438,2]
[371540617,1752341477596,-500.0,0.00016711,2]
[371540618,1752341477608,-460.0,0.00016712,2]
[371540619,1752341477618,-460.0,0.00016712,2]
[371540620,1752341477627,-460.0,0.00016986,2]
[371540621,1752341477638,-460.0,0.00016986,2]
[371540622,1752341477648,-472.98111678,0.0001726,2]
[371540623,1752341477658,-460.0,0.0001726,2]
[371540624,1752341477668,-460.0,0.00017534,2]
[371540625,1752341477677,-191.17252344,0.00017807,2]
[371540626,1752341477687,-500.0,0.00017807,2]
[371540627,1752341477696,-500.0,0.00017807,2]
[371540628,1752341477705,-500.0,0.00017807,2]
[371540629,1752341477715,-500.0,0.00017807,2]
[371540630,1752341477724,-500.0,0.00017807,2]
[371540631,1752341477734,-500.0,0.00017807,2]
[371540632,1752341477841,-500.0,0.00017807,2]
[371540633,1752341477851,-173.10884454,0.00017807,2]
[371540634,1752341477873,-326.89115546,0.00017807,2]
[371540635,1752341477882,-500.0,0.00017807,2]
[371540636,1752341477893,-232.58884454,0.00017807,2]
[371540637,1752341477905,-267.41115546,0.00017807,2]
[371540638,1752341477915,-500.0,0.00017807,2]
[371540639,1752341477924,-217.42884454,0.00017807,2]
[371540640,1752341477937,-140.07793544,0.00017807,2]
[371540641,1752341477947,-225.98911886,0.00017807,2]
[371540642,1752341477959,-274.01088114,0.00017807,2]
[371540643,1752341477968,-500.0,0.00017807,2]
[371540644,1752341477978,-500.0,0.00017807,2]
[371540645,1752341477987,-500.0,0.00017807,2]
[371540646,1752341477997,-500.0,0.00017807,2]
[371540647,1752341478007,-220.78911889,0.00017807,2]
[371540648,1752341478019,-279.21088111,0.00017807,2]
[371540649,1752341478028,-500.0,0.00017807,2]
[371540650,1752341478038,-500.0,0.00017807,2]
[371540651,1752341478048,-500.0,0.00017807,2]
[371540652,1752341478057,-500.0,0.00017807,2]
[371540653,1752341478067,-500.0,0.00017807,2]
[371540654,1752341478077,-2.73007924,0.00017807,2]
[371540655,1752341478088,-359.50100004,0.00017807,2]
[371540656,1752341478346,-460.0,0.00016438,2]
[371540657,1752341478356,-460.0,0.00016438,2]
[371540658,1752341478366,-500.0,0.00016711,2]
[371540659,1752341478376,-500.0,0.00016711,2]
[371540660,1752341478386,-500.0,0.00016711,2]
[371540661,1752341478396,-500.0,0.00016711,2]
[371540662,1752341478406,-500.0,0.00016711,2]
[371540663,1752341478415,-460.0,0.00016712,2]
[371540664,1752341478425,-460.0,0.00016712,2]
[371540665,1752341478435,-574.66947045,0.00016985,2]
[371540666,1752341478445,-460.0,0.00016986,2]
[371540667,1752341478454,-460.0,0.00016986,2]
[371540668,1752341478464,-460.0,0.0001726,2]
[371540669,1752341478473,-460.0,0.0001726,2]
[371540670,1752341478483,-460.0,0.0001726,2]
[371540671,1752341478492,-460.0,0.00017534,2]
[371540672,1752341478503,-460.0,0.00017534,2]
[371540673,1752341478514,-460.0,0.00017534,2]
[371540674,1752341478526,-137.76892072,0.00017807,2]
[371540675,1752341478536,-500.0,0.00017807,2]
[371540676,1752341478546,-500.0,0.00017807,2]
[371540677,1752341478555,-500.0,0.00017807,2]
[371540678,1752341478566,-500.0,0.00017807,2]
[371540679,1752341478576,-500.0,0.00017807,2]
[371540680,1752341478593,-500.0,0.00017807,2]
[371540681,1752341478604,-500.0,0.00017807,2]
[371540682,1752341478614,-500.0,0.00017807,2]
[371540683,1752341478623,-311.35765514,0.00017807,2]
[371540684,1752341478633,-488.40857183,0.00017807,2]
[371540685,1752341478644,-500.0,0.00017807,2]
[371540686,1752341478653,-500.0,0.00017807,2]
[371540687,1752341478663,-500.0,0.00017807,2]
[371540688,1752341478674,-500.0,0.00017807,2]
[371540689,1752341478684,-500.0,0.00017807,2]
[371540690,1752341478693,-500.0,0.00017807,2]
[371540691,1752341478703,-500.0,0.00017807,2]
[371540692,1752341478713,-500.0,0.00017807,2]
[371540693,1752341478722,-500.0,0.00017807,2]
[371540694,1752341478731,-500.0,0.00017807,2]
[371540695,1752341478741,-500.0,0.00017807,2]
[371540696,1752341478751,-500.0,0.00017807,2]
[371540697,1752341478760,-500.0,0.00017807,2]
[371540698,1752341478770,-500.0,0.00017807,2]
[371540699,1752341478779,-500.0,0.00017807,2]
[371540700,1752341478788,-500.0,0.00017807,2]
[371540701,1752341478798,-500.0,0.00017807,2]
[371540702,1752341478808,-500.0,0.00017807,2]
[371540703,1752341478817,-500.0,0.00017807,2]
[371540704,1752341478827,-359.3681323,0.00017807,2]
[371540705,1752341478839,-64.16062642,0.00017807,2]
[371540706,1752341478849,-500.0,0.00017807,2]
[371540707,1752341478859,-500.0,0.00017807,2]
[371540708,1752341478868,-500.0,0.00017807,2]
[371540709,1752341478877,-500.0,0.00017807,2]
[371540710,1752341478887,-500.0,0.00017807,2]
[371540711,1752341478897,-341.82591567,0.00017807,2]
[371540712,1752341478907,-500.0,0.00017807,2]
[371540713,1752341478917,-500.0,0.00017807,2]
[371540714,1752341478927,-500.0,0.00017807,2]
[371540715,1752341478936,-500.0,0.00017807,2]
[371540716,1752341478946,-500.0,0.00017807,2]
[371540717,1752341478955,-500.0,0.00017807,2]
[371540718,1752341478964,-500.0,0.00017807,2]
[371540719,1752341478974,-500.0,0.00017807,2]
[371540720,1752341478983,-500.0,0.00017807,2]
[371540721,1752341478993,-500.0,0.00017807,2]
[371540722,1752341479002,-500.0,0.00017807,2]
[371540723,1752341479012,-500.0,0.00017807,2]
[371540724,1752341479021,-500.0,0.00017807,2]
[371540725,1752341479031,-500.0,0.00017807,2]
[371540726,1752341479040,-500.0,0.00017807,2]
[371540727,1752341479050,-500.0,0.00017807,2]
[371540728,1752341479059,-500.0,0.00017807,2]
[371540729,1752341479069,-500.0,0.00017807,2]
[371540730,1752341479079,-224.22698659,0.00017807,2]
[371540731,1752341479088,-500.0,0.00017807,2]
[371540732,1752341479099,-500.0,0.00017807,2]
[371540733,1752341479109,-500.0,0.00017807,2]
[371540734,1752341479119,-500.0,0.00017807,2]
[371540735,1752341479128,-500.0,0.00017807,2]
[371540736,1752341479138,-500.0,0.00017807,2]
[371540737,1752341479147,-500.0,0.00017807,2]
[371540738,1752341479157,-287.15155067,0.00017807,2]
[371540739,1752341479166,-500.0,0.00017807,2]
[371540740,1752341479176,-460.0,0.00017808,2]
[371540741,1752341479185,-460.0,0.00017808,2]
[371540742,1752341479194,-460.0,0.00017808,2]
[371540743,1752341479204,-549.65,0.00017808,2]
[371540744,1752341479214,-460.0,0.00018082,2]
[371540745,1752341479224,-460.0,0.00018082,2]
[371540746,1752341479234,-460.0,0.00018082,2]
[371540747,1752341479243,-460.0,0.00018356,2]
[371540748,1752341479252,-195.25503601,0.00018356,2]
[371540749,1752341479262,-460.0,0.0001863,2]
[371540750,1752341479272,-647.05,0.00018904,2]
[371540751,1752341479281,-460.0,0.00018904,2]
[371540752,1752341479291,-500.0,0.00019178,2]
[371540753,1752341479302,-338.61259214,0.00019178,2]
[371540754,1752341479311,-647.05,0.00019178,2]
[371540755,1752341479320,-151.0,0.00019329,2]
[371540756,1752341479330,-647.05,0.00019452,2]
[371540757,1752341479340,-647.05,0.00019726,2]
[371540758,1752341479350,-647.05,0.0002,2]
[371540759,1752341479359,-647.05,0.00020273,2]
[371540760,1752341479368,-2030.66698952,0.00020323,2]
[371540761,1752341479378,-647.05,0.00020547,2]
[371540762,1752341479388,-647.05,0.00020821,2]
[371540763,1752341479397,-647.05,0.00021095,2]
[371540764,1752341479496,-647.05,0.00021369,2]
[371540765,1752341479508,-647.05,0.00021643,2]
[371540766,1752341479518,-1061.05,0.00021917,2]
[371540767,1752341479530,-647.05,0.00021917,2]
[371540768,1752341479543,-1061.05,0.00022191,2]
[371540769,1752341479553,-74425.81580944,0.000222,2]
[371540770,1752341479565,-14146.68769702,0.000222,2]
[371540771,1752341479578,-115626.2481862,0.000222,2]
[371540778,1752342095248,163.98138,0.00013699,2]
[371540808,1752342632239,-429.82180201,0.00016338,2]
[371540809,1752342632344,-430.90925315,0.00016338,2]
[371540810,1752342632354,-619.28,0.00016428,3]
[371540811,1752342632368,-309.63,0.00016428,3]
[371540812,1752342632378,-154.81,0.00016428,3]
[371540813,1752342632388,-464.46,0.00016428,3]
[371540814,1752342632399,-1200.0,0.00016437,2]
[371540815,1752342632408,-300.0,0.00016437,2]
[371540816,1752342632418,-460.0,0.00016438,2]
[371540817,1752342632428,-193.98181932,0.00016438,2]
[371541151,1752342638768,-266.01818068,0.00016438,2]
[371541153,1752342638778,-460.0,0.00016438,2]
[371541155,1752342638788,-460.0,0.00016438,2]
[371541156,1752342638797,-460.0,0.00016438,2]
[371541157,1752342638807,-460.000001,0.00016438,2]
[371541158,1752342638817,-460.0,0.00016438,2]
[371541159,1752342638827,-460.0,0.00016438,2]
[371541160,1752342638837,-460.0,0.00016438,2]
[371541161,1752342638846,-460.0,0.00016438,2]
[371541162,1752342638856,-460.0,0.00016438,2]
[371541163,1752342638866,-460.0,0.00016438,2]
[371541164,1752342638876,-460.0,0.00016438,2]
[371541165,1752342638885,-460.0,0.00016438,2]